fUST/lending_fUST_20250718
["ID","MTS","AMOUNT","RATE_DAILY","PERIOD"]
[372846172,1752778250078,-420.0,0.00018082,2]
[372846174,1752778250088,-1680.0,0.00018173,2]
[372846176,1752778250097,-592.46,0.00018196,2]
[372846178,1752778250106,-1356.06,0.00018196,2]
[372846180,1752778250116,-1023.6,0.00018199,2]
[372846182,1752778250125,-820.07,0.00018199,2]
[372846184,1752778250134,-836.0,0.00018199,2]
[372846186,1752778250143,-460.0,0.00018199,2]
[372846188,1752778250152,-473.25,0.00018199,2]
[372846190,1752778250162,-460.0,0.00018199,2]
[372846192,1752778250171,-551.91,0.00018199,2]
[372846194,1752778250180,-460.0,0.00018199,2]
[372846196,1752778250190,-521.29,0.00018199,2]
[372846198,1752778250199,-460.0,0.00018199,2]
[372846200,1752778250209,-232.09385169,0.00018202,2]
[372846202,1752778250218,-1317.96,0.00018202,2]
[372846204,1752778250228,-660.21,0.00018202,2]
[372846206,1752778250237,-539.14,0.00018202,2]
[372846208,1752778250247,-460.0,0.00018202,2]
[372846210,1752778250256,-460.0,0.00018203,2]
[372846212,1752778250265,-460.0,0.00018203,2]
[372846214,1752778250274,-460.0,0.00018203,2]
[372846216,1752778250283,-460.0,0.00018203,2]
[372846218,1752778250292,-460.0,0.00018203,2]
[372846220,1752778250302,-460.0,0.00018203,2]
[372846222,1752778250311,-868.03,0.00018204,2]
[372846224,1752778250320,-502.36,0.00018204,2]
[372846226,1752778250330,-549.26,0.00018204,2]
[372846228,1752778250339,-1699.57,0.00018204,2]
[372846230,1752778250348,-489.13,0.00018204,2]
[372846232,1752778250357,-376.31,0.00018206,2]
[372846234,1752778250367,-188.99,0.00018206,2]
[372846236,1752778250376,-460.0,0.00018206,2]
[372846238,1752778250386,-592.46,0.0001847,2]
[372846240,1752778250395,-1356.06,0.0001847,2]
[372846242,1752778250404,-1023.6,0.00018473,2]
[372846244,1752778250414,-460.0,0.00018473,2]
[372846246,1752778250423,-820.07,0.00018473,2]
[372846248,1752778250433,-836.0,0.00018473,2]
[372846250,1752778250442,-460.0,0.00018473,2]
[372846252,1752778250452,-460.0,0.00018473,2]
[372846253,1752778250465,-551.91,0.00018473,2]
[372846255,1752778250474,-460.0,0.00018473,2]
[372846257,1752778250484,-460.0,0.00018473,2]
[372846259,1752778250494,-1317.96,0.00018476,2]
[372846261,1752778250504,-660.21,0.00018476,2]
[372846263,1752778250515,-539.14,0.00018476,2]
[372846266,1752778250524,-460.0,0.00018476,2]
[372846268,1752778250536,-460.0,0.00018477,2]
[372846269,1752778250546,-460.0,0.00018477,2]
[372846271,1752778250556,-460.0,0.00018477,2]
[372846274,1752778250567,-460.0,0.00018477,2]
[372846275,1752778250578,-584.2,0.00018477,2]
[372846277,1752778250588,-868.03,0.00018478,2]
[372846280,1752778250598,-549.26,0.00018478,2]
[372846282,1752778250607,-1699.57,0.00018478,2]
[372846283,1752778250617,-489.13,0.00018478,2]
[372846285,1752778250626,-552.05,0.0001848,2]
[372846287,1752778250635,-360.0,0.0001851,2]
[372846289,1752778250645,-592.46,0.00018744,2]
[372846291,1752778250655,-1356.06,0.00018744,2]
[372846294,1752778250665,-1023.6,0.00018747,2]
[372846295,1752778250675,-820.07,0.00018747,2]
[372846298,1752778250684,-836.0,0.00018747,2]
[372846299,1752778250693,-460.0,0.00018747,2]
[372846302,1752778250703,-460.0,0.00018747,2]
[372846303,1752778250713,-551.91,0.00018747,2]
[372846305,1752778250722,-371.2702941,0.00018747,2]
[372846307,1752778250732,-460.0,0.00018747,2]
[372846309,1752778250742,-1317.96,0.0001875,2]
[372846311,1752778250751,-660.21,0.0001875,2]
[372846313,1752778250761,-539.14,0.0001875,2]
[372846315,1752778250771,-460.0,0.0001875,2]
[372846318,1752778250781,-460.0,0.00018751,2]
[372846320,1752778250791,-288.72,0.00018751,2]
[372846322,1752778250801,-460.0,0.00018751,2]
[372846324,1752778250810,-460.0,0.00018751,2]
[372846326,1752778250819,-868.03,0.00018752,2]
[372846328,1752778250829,-549.26,0.00018752,2]
[372846330,1752778250838,-1699.57,0.00018752,2]
[372846331,1752778250847,-489.13,0.00018752,2]
[372846333,1752778250856,-179.91004498,0.00018864,2]
[372846335,1752778250866,-1769.65270011,0.000189,2]
[372846337,1752778250875,-151.0,0.00019,2]
[372846339,1752778250885,-151.0,0.00019,2]
[372846341,1752778250894,-151.0,0.00019,2]
[372846343,1752778250904,-231.972154,0.00019,2]
[372846345,1752778250913,-151.0,0.00019,2]
[372846347,1752778250922,-592.46,0.00019018,2]
[372846349,1752778250931,-1356.06,0.00019018,2]
[372846351,1752778250941,-1023.6,0.00019021,2]
[372846353,1752778250950,-552.36,0.00019021,2]
[372846355,1752778250960,-820.07,0.00019021,2]
[372846357,1752778250970,-836.0,0.00019021,2]
[372846359,1752778250979,-460.0,0.00019021,2]
[372846361,1752778250989,-460.0,0.00019021,2]
[372846363,1752778250998,-551.91,0.00019021,2]
[372846365,1752778251008,-460.0,0.00019021,2]
[372846367,1752778251017,-1317.96,0.00019024,2]
[372846369,1752778251026,-660.21,0.00019024,2]
[372846371,1752778251036,-539.14,0.00019024,2]
[372846373,1752778251045,-460.0,0.00019024,2]
[372846375,1752778251054,-253.08,0.00019025,2]
[372846377,1752778251063,-460.0,0.00019025,2]
[372846379,1752778251072,-460.0,0.00019025,2]
[372846381,1752778251081,-868.03,0.00019026,2]
[372846383,1752778251090,-549.26,0.00019026,2]
[372846385,1752778251099,-1699.57,0.00019026,2]
[372846387,1752778251109,-489.13,0.00019026,2]
[372846389,1752778251118,-460.0,0.00019057,2]
[372846391,1752778251127,-500.0,0.00019174,2]
[372846393,1752778251137,-325.282794,0.00019178,2]
[372846395,1752778251145,-666.0,0.00019178,2]
[372846397,1752778251154,-592.46,0.00019292,2]
[372846399,1752778251164,-1356.06,0.00019292,2]
[372846401,1752778251173,-1023.6,0.00019295,2]
[372846403,1752778251182,-820.07,0.00019295,2]
[372846405,1752778251192,-836.0,0.00019295,2]
[372846407,1752778251205,-460.0,0.00019295,2]
[372846409,1752778251214,-460.0,0.00019295,2]
[372846411,1752778251224,-551.91,0.00019295,2]
[372846413,1752778251233,-460.0,0.00019295,2]
[372846415,1752778251243,-605.77842714,0.00019298,2]
[372846446,1752778251541,-1000.0,0.00016552,2]
[372846448,1752778251551,-460.0,0.00016555,2]
[372846450,1752778251560,-84.21028227,0.00016559,2]
[372846452,1752778251572,-375.78971773,0.00016559,2]
[372846454,1752778251581,-460.0,0.00016559,2]
[372846456,1752778251590,-460.0,0.00016562,2]
[372846457,1752778251599,-460.0,0.00016829,2]
[372846459,1752778251608,-460.0,0.00016833,2]
[372846461,1752778251618,-460.0,0.00016836,2]
[372846464,1752778251629,-712.18157286,0.00019298,2]
[372846466,1752778251638,-660.21,0.00019298,2]
[372846467,1752778251648,-539.14,0.00019298,2]
[372846469,1752778251657,-460.0,0.00019298,2]
[372846471,1752778251667,-460.0,0.00019299,2]
[372846478,1752778251785,-460.0,0.00019299,2]
[372846480,1752778251795,-868.03,0.000193,2]
[372846482,1752778251804,-549.26,0.000193,2]
[372846484,1752778251814,-1699.57,0.000193,2]
[372846486,1752778251824,-489.13,0.000193,2]
[372846488,1752778251834,-168.0,0.00019339,2]
[372846490,1752778251844,-500.0,0.0001935,2]
[372846492,1752778251853,-215.0738,0.00019371,2]
[372846494,1752778251862,-800.0,0.00019447,2]
[372846496,1752778251872,-514.98444886,0.000195,2]
[372846498,1752778251881,-592.46,0.00019566,2]
[372846500,1752778251891,-1356.06,0.00019566,2]
[372846502,1752778251900,-1023.6,0.00019569,2]
[372846504,1752778251909,-820.07,0.00019569,2]
[372846506,1752778251919,-836.0,0.00019569,2]
[372846508,1752778251928,-460.0,0.00019569,2]
[372846510,1752778251937,-460.0,0.00019569,2]
[372846512,1752778251947,-551.91,0.00019569,2]
[372846514,1752778251956,-460.0,0.00019569,2]
[372846516,1752778251965,-1317.96,0.00019572,2]
[372846518,1752778251975,-660.21,0.00019572,2]
[372846520,1752778251984,-539.14,0.00019572,2]
[372846522,1752778251994,-460.0,0.00019572,2]
[372846524,1752778252004,-504.67,0.00019573,2]
[372846526,1752778252016,-460.0,0.00019573,2]
[372846528,1752778252025,-868.03,0.00019574,2]
[372846530,1752778252034,-549.26,0.00019574,2]
[372846532,1752778252043,-1699.57,0.00019574,2]
[372846534,1752778252053,-489.13,0.00019574,2]
[372846536,1752778252062,-560.0,0.00019605,2]
[372846538,1752778252072,-243.652375,0.00019716,2]
[372846540,1752778252081,-168.0,0.00019743,2]
[372846542,1752778252090,-168.0,0.00019758,2]
[372846544,1752778252100,-587.0,0.00019759,2]
[372846546,1752778252109,-500.0,0.00019833,2]
[372846548,1752778252118,-592.46,0.0001984,2]
[372846550,1752778252128,-1356.06,0.0001984,2]
[372846552,1752778252137,-1023.6,0.00019843,2]
[372846554,1752778252147,-820.07,0.00019843,2]
[372846556,1752778252157,-836.0,0.00019843,2]
[372846558,1752778252166,-460.0,0.00019843,2]
[372846560,1752778252176,-151.0,0.00019843,2]
[372846562,1752778252185,-432.72112249,0.00019843,2]
[372846564,1752778252194,-551.91,0.00019843,2]
[372846566,1752778252204,-460.0,0.00019843,2]
[372846568,1752778252213,-1317.96,0.00019846,2]
[372846570,1752778252223,-660.21,0.00019846,2]
[372846573,1752778252232,-539.14,0.00019846,2]
[372846575,1752778252242,-460.0,0.00019846,2]
[372846577,1752778252251,-460.0,0.00019847,2]
[372846579,1752778252262,-868.03,0.00019848,2]
[372846581,1752778252272,-151.0,0.00019848,2]
[372846583,1752778252281,-224.345352,0.00019848,2]
[372846585,1752778252290,-549.26,0.00019848,2]
[372846587,1752778252299,-1699.57,0.00019848,2]
[372846589,1752778252309,-489.13,0.00019848,2]
[372846591,1752778252318,-167.263366,0.00019848,2]
[372846593,1752778252328,-167.263366,0.00019848,2]
[372846595,1752778252337,-592.46,0.00020114,2]
[372846597,1752778252346,-1356.06,0.00020114,2]
[372846599,1752778252356,-1023.6,0.00020117,2]
[372846601,1752778252365,-820.07,0.00020117,2]
[372846603,1752778252375,-836.0,0.00020117,2]
[372846605,1752778252384,-460.0,0.00020117,2]
[372846607,1752778252393,-551.91,0.00020117,2]
[372846609,1752778252403,-460.0,0.00020117,2]
[372846611,1752778252412,-1317.96,0.0002012,2]
[372846613,1752778252421,-660.21,0.0002012,2]
[372846615,1752778252431,-539.14,0.0002012,2]
[372846617,1752778252440,-460.0,0.0002012,2]
[372846619,1752778252450,-182.8,0.00020121,2]
[372846621,1752778252462,-868.03,0.00020122,2]
[372846623,1752778252472,-549.26,0.00020122,2]
[372846625,1752778252481,-1699.57,0.00020122,2]
[372846627,1752778252490,-489.13,0.00020122,2]
[372846629,1752778252501,-660.0,0.00020153,2]
[372846631,1752778252513,-500.0,0.00020164,2]
[372846633,1752778252522,-426.849746,0.00020187,2]
[372846635,1752778252533,-501.15315688,0.000202,2]
[372846637,1752778252542,-298.29602581,0.000202,2]
[372846639,1752778252552,-500.0,0.0002027,2]
[372846641,1752778252560,-3869.3103916,0.00020317,2]
[372846643,1752778252569,-1000.0,0.00020381,2]
[372846645,1752778252580,-592.46,0.00020388,2]
[372846647,1752778252589,-1356.06,0.00020388,2]
[372846649,1752778252598,-1023.6,0.00020391,2]
[372846651,1752778252607,-820.07,0.00020391,2]
[372846653,1752778252617,-836.0,0.00020391,2]
[372846655,1752778252626,-460.0,0.00020391,2]
[372846657,1752778252636,-551.91,0.00020391,2]
[372846659,1752778252645,-460.0,0.00020391,2]
[372846661,1752778252654,-1317.96,0.00020393,2]
[372846663,1752778252664,-660.21,0.00020393,2]
[372846665,1752778252673,-539.14,0.00020393,2]
[372846667,1752778252682,-460.0,0.00020393,2]
[372846669,1752778252692,-868.03,0.00020396,2]
[372846671,1752778252701,-549.26,0.00020396,2]
[372846673,1752778252710,-1699.57,0.00020396,2]
[372846675,1752778252720,-489.13,0.00020396,2]
[372846677,1752778252729,-151.0,0.00020399,2]
[372846679,1752778252739,-151.0,0.00020399,2]
[372846681,1752778252748,-309.830168,0.00020399,2]
[372846683,1752778252758,-309.830168,0.00020399,2]
[372846685,1752778252768,-647.0,0.00020504,2]
[372846687,1752778252777,-2155.0,0.00020504,2]
[372846689,1752778252787,-968.0,0.00020504,2]
[372846691,1752778252797,-151.0,0.00020512,2]
[372846693,1752778252807,-151.0,0.00020512,2]
[372846695,1752778252816,-151.7489704,0.00020512,2]
[372846697,1752778252825,-151.52218414,0.00020512,2]
[372846699,1752778252835,-153.54833042,0.00020512,2]
[372846701,1752778252845,-152.54299812,0.00020512,2]
[372846703,1752778252855,-151.26632728,0.00020512,2]
[372846705,1752778252864,-274.08742551,0.00020512,2]
[372846707,1752778252873,-151.0,0.00020512,2]
[372846709,1752778252882,-193.1393986,0.00020512,2]
[372846711,1752778252892,-500.0,0.00020512,2]
[372846713,1752778252901,-628.25895085,0.00020614,2]
[372846715,1752778252911,-243.652375,0.0002063,3]
[372846717,1752778252921,-151.0,0.00020645,2]
[372846720,1752778252936,-151.0,0.00020645,2]
[372846722,1752778252950,-151.0,0.00020645,2]
[372846725,1752778252964,-592.46,0.00020662,2]
[372846727,1752778252977,-1356.06,0.00020662,2]
[372846729,1752778252988,-1023.6,0.00020665,2]
[372846732,1752778253001,-820.07,0.00020665,2]
[372846734,1752778253015,-836.0,0.00020665,2]
[372846737,1752778253027,-460.0,0.00020665,2]
[372846739,1752778253041,-551.91,0.00020665,2]
[372846742,1752778253053,-460.0,0.00020665,2]
[372846744,1752778253067,-1317.96,0.00020667,2]
[372846747,1752778253082,-660.21,0.00020667,2]
[372846749,1752778253094,-539.14,0.00020667,2]
[372846751,1752778253107,-460.0,0.00020667,2]
[372846754,1752778253119,-868.03,0.0002067,2]
[372846756,1752778253131,-549.26,0.0002067,2]
[372846758,1752778253144,-1699.57,0.0002067,2]
[372846761,1752778253157,-489.13,0.0002067,2]
[372846763,1752778253170,-151.0,0.00020673,2]
[372846765,1752778253180,-151.0,0.00020673,2]
[372846767,1752778253191,-151.0,0.00020673,2]
[372846770,1752778253203,-151.0,0.00020673,2]
[372846772,1752778253215,-730.233,0.00020679,2]
[372846774,1752778253228,-760.0,0.00020701,2]
[372846777,1752778253241,-344.93889254,0.0002071,2]
[372846779,1752778253253,-223.0315306,0.0002074,2]
[372846782,1752778253268,-151.0,0.00020786,2]
[372846784,1752778253282,-263.89327024,0.00020786,2]
[372846786,1752778253295,-500.0,0.00020786,2]
[372846789,1752778253308,-158.856471,0.0002088,3]
[372846791,1752778253318,-1500.0,0.00020929,2]
[372846793,1752778253329,-592.46,0.00020936,2]
[372846795,1752778253339,-1356.06,0.00020936,2]
[372846798,1752778253351,-1023.6,0.00020939,2]
[372846800,1752778253365,-820.07,0.00020939,2]
[372846802,1752778253377,-836.0,0.00020939,2]
[372846805,1752778253388,-460.0,0.00020939,2]
[372846807,1752778253400,-551.91,0.00020939,2]
[372846809,1752778253411,-460.0,0.00020939,2]
[372846811,1752778253424,-1317.96,0.00020941,2]
[372846814,1752778253435,-660.21,0.00020941,2]
[372846816,1752778253446,-539.14,0.00020941,2]
[372846818,1752778253461,-460.0,0.00020941,2]
[372846820,1752778253472,-868.03,0.00020944,2]
[372846822,1752778253483,-549.26,0.00020944,2]
[372846825,1752778253495,-1699.57,0.00020944,2]
[372846827,1752778253506,-489.13,0.00020944,2]
[372846829,1752778253519,-243.652375,0.00021004,2]
[372846832,1752778253535,-151.0,0.0002106,2]
[372846834,1752778253546,-359.77817653,0.0002106,2]
[372846836,1752778253557,-160.0,0.00021106,3]
[372846838,1752778253568,-243.652375,0.00021141,4]
[372846841,1752778253579,-800.0,0.00021147,2]
[372846843,1752778253591,-592.46,0.0002121,2]
[372846845,1752778253603,-1356.06,0.0002121,2]
[372846847,1752778253614,-500.0,0.00021212,2]
[372846850,1752778253625,-1023.6,0.00021213,2]
[372846852,1752778253637,-820.07,0.00021213,2]
[372846854,1752778253647,-836.0,0.00021213,2]
[372846856,1752778253659,-460.0,0.00021213,2]
[372846858,1752778253671,-551.91,0.00021213,2]
[372846861,1752778253685,-521.80764359,0.00021213,2]
[372846863,1752778253697,-1317.96,0.00021215,2]
[372846865,1752778253709,-660.21,0.00021215,2]
[372846867,1752778253721,-539.14,0.00021215,2]
[372846869,1752778253732,-602.44726865,0.00021215,2]
[372846871,1752778253743,-868.03,0.00021218,2]
[372846874,1752778253755,-549.26,0.00021218,2]
[372846876,1752778253767,-1699.57,0.00021218,2]
[372846878,1752778253778,-489.13,0.00021218,2]
[372846880,1752778253790,-151.0,0.0002123,2]
[372846882,1752778253802,-860.0,0.00021249,2]
[372846885,1752778253813,-243.652375,0.00021272,3]
[372846887,1752778253825,-151.0,0.00021334,2]
[372846889,1752778253837,-500.0,0.00021366,2]
[372846892,1752778253849,-592.46,0.00021484,2]
[372846894,1752778253861,-1356.06,0.00021484,2]
[372846896,1752778253872,-1023.6,0.00021487,2]
[372846898,1752778253884,-820.07,0.00021487,2]
[372846901,1752778253895,-836.0,0.00021487,2]
[372846903,1752778253904,-460.0,0.00021487,2]
[372846905,1752778253914,-551.91,0.00021487,2]
[372846907,1752778253924,-1317.96,0.00021489,2]
[372846909,1752778253936,-660.21,0.00021489,2]
[372846911,1752778253946,-539.14,0.00021489,2]
[372846913,1752778253956,-868.03,0.00021492,2]
[372846915,1752778253966,-549.26,0.00021492,2]
[372846917,1752778253975,-1699.57,0.00021492,2]
[372846919,1752778253986,-489.13,0.00021492,2]
[372846921,1752778253996,-151.0,0.000215,2]
[372846923,1752778254005,-151.0,0.000215,2]
[372846925,1752778254016,-151.0,0.000215,2]
[372846927,1752778254026,-823.0,0.00021591,2]
[372846929,1752778254036,-151.0,0.00021608,2]
[372846931,1752778254046,-164.22272003,0.00021644,2]
[372846933,1752778254056,-592.46,0.00021758,2]
[372846936,1752778254066,-1356.06,0.00021758,2]
[372846938,1752778254075,-1023.6,0.00021761,2]
[372846940,1752778254085,-820.07,0.00021761,2]
[372846942,1752778254095,-836.0,0.00021761,2]
[372846944,1752778254104,-460.0,0.00021761,2]
[372846946,1752778254114,-551.91,0.00021761,2]
[372846948,1752778254123,-1317.96,0.00021763,2]
[372846950,1752778254134,-660.21,0.00021763,2]
[372846952,1752778254144,-539.14,0.00021763,2]
[372846954,1752778254153,-868.03,0.00021766,2]
[372846956,1752778254164,-549.26,0.00021766,2]
[372846958,1752778254174,-1699.57,0.00021766,2]
[372846960,1752778254184,-489.13,0.00021766,2]
[372846962,1752778254194,-567.32925396,0.00021775,5]
[372846964,1752778254204,-600.0,0.00021792,2]
[372846966,1752778254214,-960.0,0.00021797,2]
[372846968,1752778254224,-160.0,0.00021843,4]
[372846971,1752778254234,-159.7589235,0.0002186,2]
[372846973,1752778254243,-250.0,0.00021867,2]
[372846975,1752778254253,-199.66482002,0.00021882,2]
[372846977,1752778254263,-399.4482582,0.00021897,2]
[372847000,1752778254272,-319.5178467,0.00021897,2]
[372847003,1752778254493,-159.7589233,0.00021897,2]
[372847005,1752778254505,-576.958633,0.00021897,2]
[372847007,1752778254514,-576.958633,0.00021897,2]
[372847009,1752778254525,-178.0508326,0.00021897,2]
[372847011,1752778254535,-576.958633,0.00021897,2]
[372847013,1752778254544,-178.0508326,0.00021897,2]
[372847015,1752778254554,-576.958633,0.00021897,2]
[372847017,1752778254563,-178.0508326,0.00021897,2]
[372847019,1752778254572,-1153.917266,0.00021897,2]
[372847021,1752778254581,-243.652375,0.00021915,3]
[372847023,1752778254591,-164.22272003,0.00021918,2]
[372847025,1752778254600,-151.0,0.00022,3]
[372847027,1752778254609,-3358.77,0.00022,7]
[372847029,1752778254619,-6930.1,0.00022,7]
[372847031,1752778254628,-160.0,0.00022,7]
[372847033,1752778254638,-476.16111942,0.00022,7]
[372847035,1752778254647,-210.0,0.00022,2]
[372847037,1752778254656,-601.80256504,0.00022019,2]
[372847039,1752778254666,-592.46,0.00022032,2]
[372847041,1752778254675,-1356.06,0.00022032,2]
[372847043,1752778254684,-1023.6,0.00022035,2]
[372847045,1752778254693,-820.07,0.00022035,2]
[372847047,1752778254703,-836.0,0.00022035,2]
[372847049,1752778254712,-460.0,0.00022035,2]
[372847051,1752778254722,-551.91,0.00022035,2]
[372847053,1752778254731,-1317.96,0.00022037,2]
[372847055,1752778254741,-660.21,0.00022037,2]
[372847057,1752778254751,-539.14,0.00022037,2]
[372847059,1752778254760,-868.03,0.0002204,2]
[372847061,1752778254770,-549.26,0.0002204,2]
[372847063,1752778254779,-1699.57,0.0002204,2]
[372847065,1752778254789,-489.13,0.0002204,2]
[372847067,1752778254798,-231.28369723,0.00022109,2]
[372847069,1752778254808,-243.652375,0.00022125,4]
[372847071,1752778254817,-243.652375,0.00022176,6]
[372847073,1752778254826,-210.0,0.00022192,7]
[372847075,1752778254836,-961.202264,0.00022219,8]
[372847077,1752778254846,-164.22272003,0.00022219,2]
[372847079,1752778254855,-429.0948676,0.00022268,2]
[372847081,1752778254864,-243.652375,0.00022293,2]
[372847083,1752778254874,-151.0,0.000223,9]
[372847085,1752778254883,-592.46,0.00022306,2]
[372847087,1752778254895,-1356.06,0.00022306,2]
[372847089,1752778254905,-1023.6,0.00022309,2]
[372847091,1752778254916,-820.07,0.00022309,2]
[372847094,1752778254926,-836.0,0.00022309,2]
[372847095,1752778254935,-460.0,0.00022309,2]
[372847098,1752778254945,-551.91,0.00022309,2]
[372847099,1752778254954,-600.0,0.0002231,4]
[372847102,1752778254963,-600.0,0.0002231,4]
[372847104,1752778254972,-600.0,0.0002231,4]
[372847106,1752778254982,-1083.40884517,0.0002231,4]
[372847108,1752778254992,-1317.96,0.00022311,2]
[372847110,1752778255001,-660.21,0.00022311,2]
[372847112,1752778255011,-539.14,0.00022311,2]
[372847114,1752778255020,-868.03,0.00022314,2]
[372847115,1752778255029,-549.26,0.00022314,2]
[372847118,1752778255039,-1699.57,0.00022314,2]
[372847120,1752778255049,-489.13,0.00022314,2]
[372847122,1752778255059,-3004.49213334,0.00022344,2]
[372847124,1752778255068,-1060.0,0.00022345,2]
[372847126,1752778255077,-257.46224042,0.0002243,2]
[372847128,1752778255086,-151.0,0.0002243,2]
[372847130,1752778255095,-151.0,0.0002243,2]
[372847132,1752778255104,-151.0,0.0002243,2]
[372847134,1752778255114,-151.0,0.0002243,2]
[372847136,1752778255123,-151.0,0.0002243,2]
[372847138,1752778255131,-832.0,0.0002243,2]
[372847140,1752778255140,-151.0,0.0002243,2]
[372847142,1752778255150,-151.0,0.0002243,2]
[372847144,1752778255159,-151.0,0.0002243,2]
[372847146,1752778255168,-151.0,0.0002243,2]
[372847148,1752778255177,-151.0,0.0002243,2]
[372847149,1752778255186,-151.0,0.0002243,2]
[372847152,1752778255196,-151.57497679,0.0002243,2]
[372847153,1752778255205,-151.0,0.0002243,2]
[372847155,1752778255215,-737.0,0.0002243,2]
[372847157,1752778255224,-151.48953185,0.0002243,2]
[372847159,1752778255233,-500.0,0.0002243,2]
[372847161,1752778255243,-151.0,0.0002243,2]
[372847163,1752778255252,-319.5178467,0.00022438,2]
[372847165,1752778255263,-151.0,0.0002249,7]
[372847167,1752778255272,-151.0,0.0002249,7]
[372847169,1752778255282,-151.0,0.0002249,7]
[372847171,1752778255291,-151.0,0.0002249,7]
[372847173,1752778255300,-284.3035272,0.0002249,8]
[372847175,1752778255309,-243.652375,0.0002249,7]
[372847177,1752778255318,-500.0,0.0002249,8]
[372847179,1752778255328,-164.22272003,0.00022493,2]
[372847181,1752778255337,-1595.7,0.000225,2]
[372847183,1752778255347,-500.0,0.00022511,8]
[372847185,1752778255357,-243.652375,0.00022557,3]
[372847187,1752778255366,-592.46,0.0002258,2]
[372847189,1752778255376,-1356.06,0.0002258,2]
[372847191,1752778255385,-160.0,0.00022581,5]
[372847193,1752778255395,-1023.6,0.00022583,2]
[372847195,1752778255404,-820.07,0.00022583,2]
[372847197,1752778255414,-836.0,0.00022583,2]
[372847199,1752778255423,-463.63970633,0.00022583,2]
[372847201,1752778255432,-551.91,0.00022583,2]
[372847203,1752778255442,-1317.96,0.00022585,2]
[372847205,1752778255451,-660.21,0.00022585,2]
[372847207,1752778255464,-539.14,0.00022585,2]
[372847209,1752778255474,-151.0,0.00022587,7]
[372847211,1752778255483,-360.306224,0.00022587,7]
[372847213,1752778255492,-360.306224,0.00022587,7]
[372847214,1752778255502,-868.03,0.00022588,2]
[372847217,1752778255513,-151.0,0.00022588,7]
[372847219,1752778255523,-549.26,0.00022588,2]
[372847221,1752778255532,-1699.57,0.00022588,2]
[372847223,1752778255541,-489.13,0.00022588,2]
[372847225,1752778255551,-167.263366,0.00022588,7]
[372847226,1752778255560,-167.263366,0.00022588,7]
[372847228,1752778255569,-243.652375,0.000226,5]
[372847231,1752778255579,-325.282794,0.00022603,2]
[372847232,1752778255588,-200.0,0.0002265,5]
[372847234,1752778255598,-500.0,0.00022673,2]
[372847236,1752778255607,-151.0,0.00022673,7]
[372847238,1752778255616,-151.0,0.0002268,7]
[372847240,1752778255626,-151.0,0.0002268,7]
[372847242,1752778255635,-151.0,0.0002268,7]
[372847244,1752778255645,-151.0,0.0002268,7]
[372847246,1752778255654,-9086.8,0.0002268,10]
[372847248,1752778255665,-13243.2,0.0002268,10]
[372847250,1752778255674,-11036.0,0.0002268,10]